[Event "Titled Tuesday Blitz January 11 2022"]
[White "Xiong, Jeffery"]
[Black "Nilsen, Tobias Lang"]
[WhiteFideId "2047640"]
[BlackFideId "1521624"]
[WhiteElo "2727"]
[BlackElo "2013"]
[Result "1-0"]
[Round "04"]
[TimeControl "180+1"]
[Date "2022.01.11"]
[WhiteClock "0:01:18"]
[BlackClock "0:00:13"]

1. d4 {[%clk 0:03:00]}  Nf6 {[%clk 0:02:57]} 2. c4 {[%clk 0:03:01]}  c5 {[%clk 0:02:58]} 3. Nf3 {[%clk 0:03:00]}  cxd4 {[%clk 0:02:57]} 4. Nxd4 {[%clk 0:03:01]}  e5 {[%clk 0:02:56]} 5. Nb5 {[%clk 0:03:00]}  d5 {[%clk 0:02:57]} 6. cxd5 {[%clk 0:03:00]}  Bc5 {[%clk 0:02:57]} 7. N5c3 {[%clk 0:02:56]}  O-O {[%clk 0:02:49]} 8. e3 {[%clk 0:02:56]}  a6 {[%clk 0:02:45]} 9. a4 {[%clk 0:02:46]}  Nbd7 {[%clk 0:02:40]} 10. Be2 {[%clk 0:02:37]}  Nb6 {[%clk 0:02:39]} 11. e4 {[%clk 0:02:37]}  Bd7 {[%clk 0:02:34]} 12. O-O {[%clk 0:02:35]}  Nc8 {[%clk 0:02:35]} 13. Bg5 {[%clk 0:02:18]}  h6 {[%clk 0:02:33]} 14. Bh4 {[%clk 0:02:18]}  g5 {[%clk 0:02:31]} 15. Bg3 {[%clk 0:02:18]}  Nd6 {[%clk 0:02:31]} 16. Nd2 {[%clk 0:02:18]}  Qe8 {[%clk 0:02:18]} 17. Rc1 {[%clk 0:02:05]}  Rc8 {[%clk 0:02:17]} 18. Kh1 {[%clk 0:02:01]}  Bd4 {[%clk 0:02:15]} 19. Bd3 {[%clk 0:01:55]}  h5 {[%clk 0:01:50]} 20. h4 {[%clk 0:01:52]}  Ng4 {[%clk 0:01:29]} 21. Nf3 {[%clk 0:01:50]}  Bxc3 {[%clk 0:01:26]} 22. bxc3 {[%clk 0:01:51]}  gxh4 {[%clk 0:01:27]} 23. Nxh4 {[%clk 0:01:50]}  Bxa4 {[%clk 0:01:26]} 24. Qd2 {[%clk 0:01:50]}  f6 {[%clk 0:01:18]} 25. f3 {[%clk 0:01:50]}  f5 {[%clk 0:01:13]} 26. Qg5+ {[%clk 0:01:48]}  Kh8 {[%clk 0:01:12]} 27. Ng6+ {[%clk 0:01:47]}  Kg7 {[%clk 0:01:12]} 28. Nxe5+ {[%clk 0:01:45]}  Kh7 {[%clk 0:01:10]} 29. fxg4 {[%clk 0:01:45]}  Rg8 {[%clk 0:00:56]} 30. Qf6 {[%clk 0:01:38]}  Nxe4 {[%clk 0:00:41]} 31. Bxe4 {[%clk 0:01:37]}  fxe4 {[%clk 0:00:41]} 32. g5 {[%clk 0:01:35]}  Rg7 {[%clk 0:00:27]} 33. g6+ {[%clk 0:01:28]}  Kg8 {[%clk 0:00:28]} 34. Nf7 {[%clk 0:01:28]}  e3 {[%clk 0:00:20]} 35. Be5 {[%clk 0:01:27]}  Qxe5 {[%clk 0:00:13]} 36. Nh6+ {[%clk 0:01:24]}  Kh8 {[%clk 0:00:13]} 37. Qf8+ {[%clk 0:01:19]}  Rg8 {[%clk 0:00:13]} 38. Nf7# {[%clk 0:01:18]} 1-0


[Site "https://www.chess.com"]

[Event "Titled Tuesday Blitz January 11 2022"]
[White "Artemenko, Oleg"]
[Black "Djordjevic, Vuk"]
[WhiteFideId "14201798"]
[BlackFideId "902098"]
[WhiteElo "2287"]
[BlackElo "2463"]
[Result "1-0"]
[Round "05"]
[TimeControl "180+1"]
[Date "2022.01.11"]
[WhiteClock "0:00:11"]
[BlackClock "0:00:05"]

1. d4 {[%clk 0:03:00]}  Nf6 {[%clk 0:02:59]} 2. Nc3 {[%clk 0:03:01]}  d5 {[%clk 0:02:59]} 3. Bf4 {[%clk 0:03:01]}  e6 {[%clk 0:02:59]} 4. Nb5 {[%clk 0:03:00]}  Na6 {[%clk 0:02:54]} 5. e3 {[%clk 0:02:59]}  Be7 {[%clk 0:02:49]} 6. Nf3 {[%clk 0:02:59]}  O-O {[%clk 0:02:49]} 7. Be2 {[%clk 0:02:58]}  Ne4 {[%clk 0:02:48]} 8. a4 {[%clk 0:02:54]}  c6 {[%clk 0:02:21]} 9. Na3 {[%clk 0:02:52]}  Nc7 {[%clk 0:02:11]} 10. O-O {[%clk 0:02:49]}  Bd6 {[%clk 0:02:10]} 11. Bd3 {[%clk 0:02:24]}  Bxf4 {[%clk 0:01:42]} 12. exf4 {[%clk 0:02:25]}  Qd6 {[%clk 0:01:42]} 13. Qc1 {[%clk 0:02:24]}  b6 {[%clk 0:01:39]} 14. Qe3 {[%clk 0:02:22]}  Ba6 {[%clk 0:01:37]} 15. Rfc1 {[%clk 0:02:17]}  Nf6 {[%clk 0:01:27]} 16. Ne5 {[%clk 0:01:48]}  Rfc8 {[%clk 0:01:25]} 17. Bxa6 {[%clk 0:01:43]}  Nxa6 {[%clk 0:01:25]} 18. c3 {[%clk 0:01:43]}  Ne4 {[%clk 0:01:18]} 19. f3 {[%clk 0:01:43]}  Nf6 {[%clk 0:01:18]} 20. b4 {[%clk 0:01:41]}  c5 {[%clk 0:01:11]} 21. dxc5 {[%clk 0:01:32]}  bxc5 {[%clk 0:01:11]} 22. b5 {[%clk 0:01:33]}  Nb8 {[%clk 0:01:07]} 23. c4 {[%clk 0:01:32]}  Nbd7 {[%clk 0:01:00]} 24. Rd1 {[%clk 0:01:19]}  d4 {[%clk 0:00:44]} 25. Qe1 {[%clk 0:01:17]}  Qc7 {[%clk 0:00:32]} 26. Nc2 {[%clk 0:01:07]}  a5 {[%clk 0:00:24]} 27. Qe2 {[%clk 0:00:58]}  Nb6 {[%clk 0:00:24]} 28. Ne1 {[%clk 0:00:57]}  Ne8 {[%clk 0:00:23]} 29. Rdc1 {[%clk 0:00:48]}  f6 {[%clk 0:00:20]} 30. Ng4 {[%clk 0:00:47]}  Qf7 {[%clk 0:00:15]} 31. Nf2 {[%clk 0:00:45]}  Nd6 {[%clk 0:00:12]} 32. Ne4 {[%clk 0:00:44]}  Qe7 {[%clk 0:00:12]} 33. Nxd6 {[%clk 0:00:43]}  Qxd6 {[%clk 0:00:13]} 34. Nd3 {[%clk 0:00:44]}  Re8 {[%clk 0:00:13]} 35. Qe4 {[%clk 0:00:44]}  Ra7 {[%clk 0:00:12]} 36. Ra2 {[%clk 0:00:33]}  Rae7 {[%clk 0:00:11]} 37. Kf1 {[%clk 0:00:31]}  e5 {[%clk 0:00:09]} 38. f5 {[%clk 0:00:31]}  Rc7 {[%clk 0:00:07]} 39. h4 {[%clk 0:00:26]}  Qd7 {[%clk 0:00:06]} 40. h5 {[%clk 0:00:25]}  Qf7 {[%clk 0:00:06]} 41. Nb2 {[%clk 0:00:15]}  Qxh5 {[%clk 0:00:04]} 42. Kf2 {[%clk 0:00:15]}  Qg5 {[%clk 0:00:03]} 43. Nd3 {[%clk 0:00:16]}  g6 {[%clk 0:00:02]} 44. fxg6 {[%clk 0:00:15]}  hxg6 {[%clk 0:00:03]} 45. f4 {[%clk 0:00:14]}  Qf5 {[%clk 0:00:03]} 46. Qxf5 {[%clk 0:00:14]}  gxf5 {[%clk 0:00:04]} 47. fxe5 {[%clk 0:00:13]}  fxe5 {[%clk 0:00:05]} 48. Rac2 {[%clk 0:00:12]}  e4 {[%clk 0:00:05]} 49. Nf4 {[%clk 0:00:13]}  e3+ {[%clk 0:00:05]} 50. Ke2 {[%clk 0:00:13]}  Nxa4 {[%clk 0:00:05]} 51. Ra1 {[%clk 0:00:13]}  Nc3+ {[%clk 0:00:05]} 52. Kd3 {[%clk 0:00:13]}  a4 {[%clk 0:00:03]} 53. g4 {[%clk 0:00:12]}  fxg4 {[%clk 0:00:03]} 54. Rg1 {[%clk 0:00:12]}  Rg7 {[%clk 0:00:04]} 55. Nh5 {[%clk 0:00:12]}  Rg6 {[%clk 0:00:04]} 56. Nf4 {[%clk 0:00:12]}  Rg5 {[%clk 0:00:04]} 57. Nh3 {[%clk 0:00:13]}  Rg7 {[%clk 0:00:04]} 58. Nf4 {[%clk 0:00:13]}  e2 {[%clk 0:00:04]} 59. Rcc1 {[%clk 0:00:11]}  g3 {[%clk 0:00:03]} 60. Nh5 {[%clk 0:00:11]}  Re3+ {[%clk 0:00:03]} 61. Kd2 {[%clk 0:00:11]}  Rg5 {[%clk 0:00:04]} 62. b6 {[%clk 0:00:11]}  Rg6 {[%clk 0:00:03]} 63. b7 {[%clk 0:00:11]}  Rb6 {[%clk 0:00:04]} 64. Nf6+ {[%clk 0:00:11]}  Kf7 {[%clk 0:00:04]} 65. Ng4 {[%clk 0:00:09]}  Rb2+ {[%clk 0:00:04]} 66. Ke1 {[%clk 0:00:10]}  Rxb7 {[%clk 0:00:03]} 67. Nxe3 {[%clk 0:00:10]}  dxe3 {[%clk 0:00:04]} 68. Rxg3 {[%clk 0:00:10]}  Ra7 {[%clk 0:00:04]} 69. Rxc3 {[%clk 0:00:10]}  a3 {[%clk 0:00:04]} 70. Rc1 {[%clk 0:00:10]}  Kf6 {[%clk 0:00:05]} 71. Rxe3 {[%clk 0:00:10]}  Kf5 {[%clk 0:00:05]} 72. Kxe2 {[%clk 0:00:11]}  a2 {[%clk 0:00:06]} 73. Ra1 {[%clk 0:00:11]}  Kf4 {[%clk 0:00:07]} 74. Re8 {[%clk 0:00:10]}  Ra3 {[%clk 0:00:06]} 75. Kd2 {[%clk 0:00:10]}  Rh3 {[%clk 0:00:05]} 76. Rxa2 {[%clk 0:00:11]} 1-0


[Site "https://www.chess.com"]

[Event "Titled Tuesday Blitz January 11 2022"]
[White "Boyer, Mahel"]
[Black "Piorun, Kacper"]
[WhiteFideId "45102422"]
[BlackFideId "1130420"]
[WhiteElo "2328"]
[BlackElo "2571"]
[Result "0-1"]
[Round "05"]
[TimeControl "180+1"]
[Date "2022.01.11"]
[WhiteClock "0:00:33"]
[BlackClock "0:01:48"]

1. d4 {[%clk 0:03:00]}  e6 {[%clk 0:02:59]} 2. c4 {[%clk 0:03:00]}  Nf6 {[%clk 0:02:59]} 3. Nf3 {[%clk 0:02:59]}  b6 {[%clk 0:02:58]} 4. a3 {[%clk 0:02:59]}  Ba6 {[%clk 0:02:54]} 5. Qc2 {[%clk 0:02:55]}  c5 {[%clk 0:02:53]} 6. d5 {[%clk 0:02:27]}  exd5 {[%clk 0:02:53]} 7. cxd5 {[%clk 0:02:28]}  g6 {[%clk 0:02:53]} 8. Nc3 {[%clk 0:02:10]}  Bg7 {[%clk 0:02:52]} 9. e4 {[%clk 0:02:04]}  Bxf1 {[%clk 0:02:51]} 10. Kxf1 {[%clk 0:02:05]}  d6 {[%clk 0:02:49]} 11. g3 {[%clk 0:02:02]}  O-O {[%clk 0:02:49]} 12. Kg2 {[%clk 0:02:02]}  Re8 {[%clk 0:02:48]} 13. Re1 {[%clk 0:02:00]}  a6 {[%clk 0:02:45]} 14. a4 {[%clk 0:01:59]}  Nbd7 {[%clk 0:02:44]} 15. Bf4 {[%clk 0:01:53]}  Qc7 {[%clk 0:02:32]} 16. Nd2 {[%clk 0:01:53]}  c4 {[%clk 0:02:27]} 17. Ne2 {[%clk 0:01:17]}  Rac8 {[%clk 0:02:21]} 18. Nd4 {[%clk 0:01:10]}  Nxd5 {[%clk 0:02:04]} 19. exd5 {[%clk 0:01:03]}  Rxe1 {[%clk 0:02:03]} 20. Rxe1 {[%clk 0:00:53]}  Bxd4 {[%clk 0:02:03]} 21. Re4 {[%clk 0:00:44]}  Qc5 {[%clk 0:01:53]} 22. Be3 {[%clk 0:00:44]}  Bxe3 {[%clk 0:01:50]} 23. Rxc4 {[%clk 0:00:44]}  Qxd5+ {[%clk 0:01:50]} 24. Qe4 {[%clk 0:00:32]}  Qxe4+ {[%clk 0:01:48]} 25. Nxe4 {[%clk 0:00:33]}  Rxc4 {[%clk 0:01:48]} 0-1


[Site "https://www.chess.com"]

[Event "Titled Tuesday Blitz January 11 2022"]
[White "Demchenko, Anton"]
[Black "Ozer, Omer Faruk"]
[WhiteFideId "4160258"]
[BlackFideId "6354564"]
[WhiteElo "2539"]
[BlackElo "2050"]
[Result "1-0"]
[Round "05"]
[TimeControl "180+1"]
[Date "2022.01.11"]
[WhiteClock "0:00:04"]
[BlackClock "0:00:09"]

1. e4 {[%clk 0:03:00]}  e5 {[%clk 0:02:57]} 2. Nf3 {[%clk 0:03:00]}  Nc6 {[%clk 0:02:57]} 3. Bc4 {[%clk 0:03:01]}  Nf6 {[%clk 0:02:57]} 4. d3 {[%clk 0:03:01]}  h6 {[%clk 0:02:56]} 5. Nc3 {[%clk 0:03:00]}  d6 {[%clk 0:02:55]} 6. a4 {[%clk 0:02:58]}  g6 {[%clk 0:02:54]} 7. h3 {[%clk 0:02:54]}  Bg7 {[%clk 0:02:53]} 8. Be3 {[%clk 0:02:54]}  Be6 {[%clk 0:02:39]} 9. Bxe6 {[%clk 0:02:27]}  fxe6 {[%clk 0:02:39]} 10. Ne2 {[%clk 0:02:28]}  Nh5 {[%clk 0:02:25]} 11. c3 {[%clk 0:02:20]}  O-O {[%clk 0:02:13]} 12. Qb3 {[%clk 0:02:06]}  Qd7 {[%clk 0:02:08]} 13. d4 {[%clk 0:02:06]}  Kh7 {[%clk 0:01:46]} 14. dxe5 {[%clk 0:01:50]}  Nxe5 {[%clk 0:01:41]} 15. Nxe5 {[%clk 0:01:50]}  Bxe5 {[%clk 0:01:41]} 16. O-O {[%clk 0:01:51]}  g5 {[%clk 0:01:38]} 17. Nd4 {[%clk 0:01:42]}  Bxd4 {[%clk 0:01:30]} 18. cxd4 {[%clk 0:01:40]}  c6 {[%clk 0:01:30]} 19. Rac1 {[%clk 0:01:16]}  d5 {[%clk 0:01:29]} 20. Qc2 {[%clk 0:01:01]}  Kg7 {[%clk 0:01:28]} 21. b4 {[%clk 0:00:48]}  a6 {[%clk 0:01:05]} 22. Rfe1 {[%clk 0:00:46]}  Qf7 {[%clk 0:00:54]} 23. Qb2 {[%clk 0:00:40]}  Nf6 {[%clk 0:00:38]} 24. exd5 {[%clk 0:00:35]}  exd5 {[%clk 0:00:27]} 25. b5 {[%clk 0:00:35]}  axb5 {[%clk 0:00:27]} 26. axb5 {[%clk 0:00:35]}  Rac8 {[%clk 0:00:28]} 27. bxc6 {[%clk 0:00:35]}  bxc6 {[%clk 0:00:25]} 28. f3 {[%clk 0:00:36]}  Rfe8 {[%clk 0:00:24]} 29. Bf2 {[%clk 0:00:34]}  Rxe1+ {[%clk 0:00:23]} 30. Rxe1 {[%clk 0:00:35]}  Nh5 {[%clk 0:00:23]} 31. Qa3 {[%clk 0:00:31]}  Re8 {[%clk 0:00:23]} 32. Rc1 {[%clk 0:00:28]}  Re6 {[%clk 0:00:19]} 33. Be3 {[%clk 0:00:28]}  Ng3 {[%clk 0:00:15]} 34. Kh2 {[%clk 0:00:23]}  Nf5 {[%clk 0:00:13]} 35. Bf2 {[%clk 0:00:23]}  Qc7+ {[%clk 0:00:14]} 36. Kg1 {[%clk 0:00:23]}  Qf4 {[%clk 0:00:14]} 37. Qc3 {[%clk 0:00:19]}  Kg6 {[%clk 0:00:13]} 38. Ra1 {[%clk 0:00:18]}  h5 {[%clk 0:00:11]} 39. Ra6 {[%clk 0:00:08]}  Ng3 {[%clk 0:00:10]} 40. Qc2+ {[%clk 0:00:06]}  Kh6 {[%clk 0:00:09]} 41. Rxc6 {[%clk 0:00:04]}  Ne2+ {[%clk 0:00:07]} 42. Kf1 {[%clk 0:00:04]}  Ng3+ {[%clk 0:00:03]} 43. Bxg3 {[%clk 0:00:04]}  Qe3 {[%clk 0:00:03]} 44. Rxe6+ {[%clk 0:00:04]}  Qxe6 {[%clk 0:00:04]} 45. Be5 {[%clk 0:00:04]}  Qa6+ {[%clk 0:00:04]} 46. Qe2 {[%clk 0:00:04]}  Qa1+ {[%clk 0:00:04]} 47. Kf2 {[%clk 0:00:05]}  Qc3 {[%clk 0:00:05]} 48. Qe3 {[%clk 0:00:05]}  Qc2+ {[%clk 0:00:05]} 49. Kg1 {[%clk 0:00:05]}  Qd1+ {[%clk 0:00:06]} 50. Kh2 {[%clk 0:00:06]}  h4 {[%clk 0:00:06]} 51. Qf2 {[%clk 0:00:04]}  Kh5 {[%clk 0:00:06]} 52. Qa2 {[%clk 0:00:04]}  Qe1 {[%clk 0:00:05]} 53. Qxd5 {[%clk 0:00:03]}  Kg6 {[%clk 0:00:04]} 54. Qe4+ {[%clk 0:00:03]}  Kh5 {[%clk 0:00:04]} 55. Qxe1 {[%clk 0:00:03]}  g4 {[%clk 0:00:05]} 56. fxg4+ {[%clk 0:00:03]}  Kg6 {[%clk 0:00:05]} 57. Qxh4 {[%clk 0:00:02]}  Kf7 {[%clk 0:00:06]} 58. Qg5 {[%clk 0:00:02]}  Ke6 {[%clk 0:00:06]} 59. Qf5+ {[%clk 0:00:03]}  Kd5 {[%clk 0:00:07]} 60. Bg3+ {[%clk 0:00:03]}  Kc4 {[%clk 0:00:08]} 61. d5 {[%clk 0:00:03]}  Kd4 {[%clk 0:00:09]} 62. d6 {[%clk 0:00:04]} 1-0


[Site "https://www.chess.com"]

[Event "Titled Tuesday Blitz January 11 2022"]
[White "Guseinov, Gadir"]
[Black "Jobava, Baadur"]
[WhiteFideId "13401378"]
[BlackFideId "13601520"]
[WhiteElo "2581"]
[BlackElo "2617"]
[Result "1-0"]
[Round "05"]
[TimeControl "180+1"]
[Date "2022.01.11"]
[WhiteClock "0:00:14"]
[BlackClock "0:00:14"]

1. e4 {[%clk 0:03:00]}  c6 {[%clk 0:02:58]} 2. d4 {[%clk 0:03:00]}  d5 {[%clk 0:02:59]} 3. Nd2 {[%clk 0:03:00]}  dxe4 {[%clk 0:02:59]} 4. Nxe4 {[%clk 0:03:01]}  Bf5 {[%clk 0:02:58]} 5. Ng3 {[%clk 0:03:01]}  Bg6 {[%clk 0:02:59]} 6. h4 {[%clk 0:03:01]}  h6 {[%clk 0:02:59]} 7. Nf3 {[%clk 0:03:02]}  Nd7 {[%clk 0:03:00]} 8. h5 {[%clk 0:03:02]}  Bh7 {[%clk 0:03:01]} 9. Bd3 {[%clk 0:03:03]}  Bxd3 {[%clk 0:03:01]} 10. Qxd3 {[%clk 0:03:03]}  e6 {[%clk 0:03:02]} 11. Bd2 {[%clk 0:03:04]}  Ngf6 {[%clk 0:03:00]} 12. O-O-O {[%clk 0:03:04]}  Qc7 {[%clk 0:03:00]} 13. Ne4 {[%clk 0:03:03]}  Nxe4 {[%clk 0:02:59]} 14. Qxe4 {[%clk 0:03:02]}  O-O-O {[%clk 0:02:57]} 15. g3 {[%clk 0:02:59]}  Bd6 {[%clk 0:02:52]} 16. c4 {[%clk 0:02:59]}  c5 {[%clk 0:02:48]} 17. Bc3 {[%clk 0:02:56]}  Nf6 {[%clk 0:02:47]} 18. Qe2 {[%clk 0:02:55]}  a6 {[%clk 0:02:41]} 19. Kb1 {[%clk 0:02:53]}  Rhe8 {[%clk 0:02:38]} 20. dxc5 {[%clk 0:02:47]}  Qxc5 {[%clk 0:02:33]} 21. Ne5 {[%clk 0:02:46]}  Bxe5 {[%clk 0:02:28]} 22. Bxe5 {[%clk 0:02:47]}  Ng4 {[%clk 0:02:05]} 23. Bxg7 {[%clk 0:01:50]}  Nxf2 {[%clk 0:01:30]} 24. Rxd8+ {[%clk 0:01:48]}  Rxd8 {[%clk 0:01:30]} 25. Rf1 {[%clk 0:01:48]}  Qf5+ {[%clk 0:01:25]} 26. Qc2 {[%clk 0:01:40]}  Qg4 {[%clk 0:00:30]} 27. Bxh6 {[%clk 0:00:55]}  Qxh5 {[%clk 0:00:28]} 28. Qxf2 {[%clk 0:00:46]}  Qg6+ {[%clk 0:00:28]} 29. Ka1 {[%clk 0:00:39]}  Qxh6 {[%clk 0:00:29]} 30. Qxf7 {[%clk 0:00:34]}  Qe3 {[%clk 0:00:29]} 31. a3 {[%clk 0:00:28]}  Qe2 {[%clk 0:00:28]} 32. Qf4 {[%clk 0:00:22]}  e5 {[%clk 0:00:24]} 33. Qc1 {[%clk 0:00:19]}  e4 {[%clk 0:00:20]} 34. Re1 {[%clk 0:00:19]}  Qd3 {[%clk 0:00:18]} 35. Qf4 {[%clk 0:00:17]}  Qxc4 {[%clk 0:00:14]} 36. Rc1 {[%clk 0:00:14]} 1-0


[Site "https://www.chess.com"]

[Event "Titled Tuesday Blitz January 11 2022"]
[White "Dronavalli, Harika"]
[Black "Rodrigue-Lemieux, Shawn"]
[WhiteFideId "5015197"]
[BlackFideId "2620049"]
[WhiteElo "2382"]
[BlackElo "1763"]
[Result "0-1"]
[Round "05"]
[TimeControl "180+1"]
[Date "2022.01.11"]
[WhiteClock "0:00:25"]
[BlackClock "0:00:08"]

1. e4 {[%clk 0:02:58]}  c6 {[%clk 0:02:59]} 2. Nf3 {[%clk 0:02:57]}  d5 {[%clk 0:03:00]} 3. exd5 {[%clk 0:02:55]}  cxd5 {[%clk 0:03:01]} 4. Ne5 {[%clk 0:02:55]}  Nc6 {[%clk 0:03:00]} 5. Bb5 {[%clk 0:02:54]}  Bd7 {[%clk 0:03:00]} 6. Nxd7 {[%clk 0:02:54]}  Qxd7 {[%clk 0:03:01]} 7. d4 {[%clk 0:02:52]}  e6 {[%clk 0:02:59]} 8. O-O {[%clk 0:02:52]}  Nf6 {[%clk 0:03:00]} 9. c3 {[%clk 0:02:51]}  Bd6 {[%clk 0:03:00]} 10. Nd2 {[%clk 0:02:50]}  O-O {[%clk 0:03:01]} 11. Nf3 {[%clk 0:02:50]}  Qc7 {[%clk 0:02:58]} 12. h3 {[%clk 0:02:48]}  a6 {[%clk 0:02:56]} 13. Bd3 {[%clk 0:02:46]}  b5 {[%clk 0:02:56]} 14. a3 {[%clk 0:02:39]}  Rab8 {[%clk 0:02:56]} 15. Re1 {[%clk 0:02:37]}  Bf4 {[%clk 0:02:52]} 16. Bxf4 {[%clk 0:02:31]}  Qxf4 {[%clk 0:02:53]} 17. Qc2 {[%clk 0:02:30]}  Rfc8 {[%clk 0:02:52]} 18. Rad1 {[%clk 0:02:24]}  a5 {[%clk 0:02:51]} 19. Qe2 {[%clk 0:01:56]}  b4 {[%clk 0:02:50]} 20. axb4 {[%clk 0:01:57]}  axb4 {[%clk 0:02:51]} 21. c4 {[%clk 0:01:57]}  dxc4 {[%clk 0:02:48]} 22. Bxc4 {[%clk 0:01:57]}  Ne7 {[%clk 0:02:40]} 23. Qe5 {[%clk 0:01:55]}  Qxe5 {[%clk 0:02:36]} 24. Nxe5 {[%clk 0:01:55]}  Ned5 {[%clk 0:02:35]} 25. Rc1 {[%clk 0:01:53]}  g5 {[%clk 0:02:30]} 26. g3 {[%clk 0:01:52]}  Kg7 {[%clk 0:02:29]} 27. Kg2 {[%clk 0:01:53]}  Rc7 {[%clk 0:02:24]} 28. Bxd5 {[%clk 0:01:51]}  Rxc1 {[%clk 0:02:22]} 29. Rxc1 {[%clk 0:01:51]}  Nxd5 {[%clk 0:02:23]} 30. Ra1 {[%clk 0:01:49]}  Rb7 {[%clk 0:02:22]} 31. Ra5 {[%clk 0:01:49]}  Rc7 {[%clk 0:02:20]} 32. Rc5 {[%clk 0:01:48]}  Ra7 {[%clk 0:02:20]} 33. Rb5 {[%clk 0:01:45]}  f6 {[%clk 0:02:13]} 34. Nd3 {[%clk 0:01:45]}  Ra2 {[%clk 0:02:11]} 35. Rb7+ {[%clk 0:01:25]}  Kg6 {[%clk 0:02:10]} 36. Rb8 {[%clk 0:01:24]}  h5 {[%clk 0:01:59]} 37. Rg8+ {[%clk 0:01:23]}  Kf7 {[%clk 0:01:53]} 38. Rb8 {[%clk 0:01:24]}  Kg7 {[%clk 0:01:52]} 39. Rb7+ {[%clk 0:01:23]}  Kg6 {[%clk 0:01:52]} 40. Rb8 {[%clk 0:01:24]}  g4 {[%clk 0:01:52]} 41. hxg4 {[%clk 0:01:23]}  hxg4 {[%clk 0:01:52]} 42. Rb5 {[%clk 0:01:07]}  Kg7 {[%clk 0:01:32]} 43. Rb7+ {[%clk 0:01:05]}  Kg6 {[%clk 0:01:31]} 44. Rb5 {[%clk 0:01:05]}  Ra4 {[%clk 0:01:23]} 45. Kf1 {[%clk 0:01:00]}  b3 {[%clk 0:01:12]} 46. Rxb3 {[%clk 0:00:59]}  Rxd4 {[%clk 0:01:13]} 47. Kg2 {[%clk 0:00:57]}  Rc4 {[%clk 0:01:09]} 48. Rb5 {[%clk 0:00:57]}  Rc2 {[%clk 0:01:07]} 49. Kf1 {[%clk 0:00:56]}  Rd2 {[%clk 0:01:03]} 50. Nc5 {[%clk 0:00:53]}  Kf5 {[%clk 0:00:55]} 51. Rb3 {[%clk 0:00:44]}  Rd1+ {[%clk 0:00:51]} 52. Ke2 {[%clk 0:00:44]}  Rb1 {[%clk 0:00:48]} 53. Nd3 {[%clk 0:00:44]}  e5 {[%clk 0:00:46]} 54. Nb4 {[%clk 0:00:44]}  Nc7 {[%clk 0:00:40]} 55. Nc2 {[%clk 0:00:43]}  Ne6 {[%clk 0:00:38]} 56. Ne3+ {[%clk 0:00:44]}  Ke4 {[%clk 0:00:33]} 57. Nc2 {[%clk 0:00:41]}  Rc1 {[%clk 0:00:18]} 58. Rb4+ {[%clk 0:00:38]}  Nd4+ {[%clk 0:00:17]} 59. Nxd4 {[%clk 0:00:38]}  exd4 {[%clk 0:00:18]} 60. Rb6 {[%clk 0:00:38]}  Rc2+ {[%clk 0:00:17]} 61. Ke1 {[%clk 0:00:38]}  Kd3 {[%clk 0:00:17]} 62. Rb3+ {[%clk 0:00:37]}  Ke4 {[%clk 0:00:17]} 63. Rb6 {[%clk 0:00:37]}  f5 {[%clk 0:00:17]} 64. Rb5 {[%clk 0:00:36]}  Kd3 {[%clk 0:00:17]} 65. Rb3+ {[%clk 0:00:36]}  Ke4 {[%clk 0:00:18]} 66. Rb5 {[%clk 0:00:36]}  d3 {[%clk 0:00:14]} 67. Rb4+ {[%clk 0:00:34]}  Ke5 {[%clk 0:00:05]} 68. Rb5+ {[%clk 0:00:21]}  Ke4 {[%clk 0:00:05]} 69. Rb4+ {[%clk 0:00:21]}  Kf3 {[%clk 0:00:06]} 70. Rf4+ {[%clk 0:00:21]}  Kg2 {[%clk 0:00:06]} 71. b4 {[%clk 0:00:21]}  Re2+ {[%clk 0:00:05]} 72. Kd1 {[%clk 0:00:21]}  Rxf2 {[%clk 0:00:03]} 73. Rxf2+ {[%clk 0:00:19]}  Kxf2 {[%clk 0:00:04]} 74. b5 {[%clk 0:00:20]}  f4 {[%clk 0:00:05]} 75. b6 {[%clk 0:00:18]}  fxg3 {[%clk 0:00:04]} 76. b7 {[%clk 0:00:19]}  g2 {[%clk 0:00:05]} 77. b8=Q {[%clk 0:00:19]}  g1=Q+ {[%clk 0:00:06]} 78. Kd2 {[%clk 0:00:20]}  Qg3 {[%clk 0:00:04]} 79. Qb6+ {[%clk 0:00:19]}  Kg2 {[%clk 0:00:04]} 80. Qc6+ {[%clk 0:00:19]}  Qf3 {[%clk 0:00:04]} 81. Qd6 {[%clk 0:00:18]}  Qe2+ {[%clk 0:00:03]} 82. Kc3 {[%clk 0:00:18]}  d2 {[%clk 0:00:03]} 83. Qd5+ {[%clk 0:00:18]}  Qf3+ {[%clk 0:00:03]} 84. Qxf3+ {[%clk 0:00:18]}  gxf3 {[%clk 0:00:04]} 85. Kxd2 {[%clk 0:00:19]}  f2 {[%clk 0:00:05]} 86. Ke3 {[%clk 0:00:19]}  f1=Q {[%clk 0:00:06]} 87. Ke4 {[%clk 0:00:20]}  Qf3+ {[%clk 0:00:06]} 88. Ke5 {[%clk 0:00:21]}  Kg3 {[%clk 0:00:06]} 89. Ke6 {[%clk 0:00:22]}  Qf4 {[%clk 0:00:07]} 90. Kd5 {[%clk 0:00:23]}  Kf3 {[%clk 0:00:07]} 91. Kc5 {[%clk 0:00:23]}  Qe4 {[%clk 0:00:08]} 92. Kb5 {[%clk 0:00:24]}  Ke3 {[%clk 0:00:08]} 93. Kb6 {[%clk 0:00:24]}  Qd5 {[%clk 0:00:08]} 94. Kc7 {[%clk 0:00:25]}  Qe6 {[%clk 0:00:08]} 0-1


[Site "https://www.chess.com"]